fUSD/lending_fUSD_20260224
["ID","MTS","AMOUNT","RATE_DAILY","PERIOD"]
[406508787,1771894242878,-170.33,0.00028819,2]
[406508788,1771894242888,-2000.0,0.00029,2]
[406508789,1771894242897,-403.33104084,0.00029102,2]
[406508790,1771894242906,-447.06297488,0.00029619,2]
[406508791,1771894242915,-904.64909465,0.00029619,2]
[406508792,1771894242925,-500.0,0.0002984,2]
[406508793,1771894242934,-150.0,0.00029971,2]
[406508794,1771894242944,-1000.0,0.0003,10]
[406508795,1771894242953,-245.92,0.00030137,2]
[406508796,1771894242962,-170.33,0.0003027,2]
[406508797,1771894242971,-1747.696,0.00030363,25]
[406508798,1771894242980,-175.85,0.00030363,25]
[406508799,1771894242990,-155.91,0.00030411,120]
[406508800,1771894242999,-514.0,0.00030677,15]
[406508801,1771894243008,-150.0,0.0003147,2]
[406508802,1771894243018,-1500.0,0.00031558,120]
[406508803,1771894243027,-351.98367053,0.0003172,2]
[406508804,1771894243037,-197.76284814,0.00032,120]
[406508805,1771894243046,-24000.23,0.00032,2]
[406508806,1771894243056,-500.0,0.00032227,2]
[406508807,1771894243066,-2000.0,0.000327,2]
[406508808,1771894243075,-245.92,0.00032877,2]
[406508809,1771894243084,-471.0,0.00032877,120]
[406508810,1771894243093,-152.17,0.000329,2]
[406508811,1771894243103,-169.84,0.000329,14]
[406508812,1771894243112,-150.0,0.00033043,2]
[406508813,1771894243121,-514.0,0.00033273,18]
[406508814,1771894243130,-171.25,0.000334,30]
[406508815,1771894243139,-39612.09,0.00033608,2]
[406508816,1771894243148,-150.0,0.00034696,2]
[406508817,1771894243157,-500.0,0.00034805,2]
[406508818,1771894243167,-2506.37,0.00034993,2]
[406508819,1771894243176,-150.0,0.00035,2]
[406508820,1771894243186,-144804.77424838,0.0003561,2]
[406508821,1771894243196,-4451.23333229,0.0003561,2]
[406508822,1771894243205,-5000.0,0.0003561,2]
[406508823,1771894243214,-245.92,0.00035616,2]
[406508824,1771894243224,-169.84,0.000357,14]
[406508825,1771894243234,-514.0,0.00035869,20]
[406508826,1771894243243,-119652.6595283,0.00036,2]
[406508827,1771894243253,-166.0,0.00036,30]
[406508828,1771894243262,-351.98367053,0.00036327,2]
[406508829,1771894243271,-2000.0,0.000364,2]
[406508830,1771894243280,-150.0,0.0003643,2]
[406508831,1771894243289,-618.0,0.00036442,2]
[406508832,1771894243298,-1339.0,0.00036442,2]
[406508833,1771894243307,-3495.0,0.00036442,2]
[406508834,1771894243317,-1324.242,0.00036442,2]
[406508835,1771894243326,-5979.0,0.00036442,2]
[406508836,1771894243335,-2454.0,0.00036442,2]
[406508837,1771894243344,-271.429,0.00036442,2]
[406508838,1771894243353,-1682.35101033,0.000367,120]
[406508840,1771894243362,-173.0,0.000369,120]
[406508842,1771894243371,-500.0,0.0003759,2]
[406508844,1771894243380,-166.05,0.000376,30]
[406508846,1771894243390,-815.1720267,0.00037999,120]
[406508848,1771894243403,-1240.47,0.00038034,30]
[406508849,1771894243412,-169.84,0.000381,14]
[406508850,1771894243421,-162.0,0.000382,60]
[406508851,1771894243430,-150.0,0.00038252,2]
[406508852,1771894243440,-514.0,0.00038465,22]
[406508853,1771894243449,-173.0,0.00038745,120]
[406508854,1771894243458,-152.17,0.000388,30]
[406508855,1771894243468,-1591.89046,0.000389,120]
[406508856,1771894243477,-618.0,0.00039442,2]
[406508857,1771894243486,-1339.0,0.00039442,2]
[406508858,1771894243494,-2152.07706394,0.00039442,2]
[406508859,1771894243507,-1342.92293606,0.00039442,2]
[406508860,1771894243517,-293.41849887,0.00039442,2]
[406508861,1771894243530,-420.86114321,0.00039442,2]
[406508862,1771894243619,-1.55475209,0.00039442,2]
[406508863,1771894243637,-12795.52902816,0.00013661,2]
[406508864,1771894243649,-779.36679134,0.00013661,2]
[406508865,1771894243663,-6049.07386188,0.00013661,2]
[406508866,1771894243674,-494.16560583,0.00039442,2]
[406508867,1771894243683,-3735.17,0.00039442,2]
[406508868,1771894243694,-2454.0,0.00039442,2]
[406508869,1771894243704,-158.48427762,0.0004,30]
[406508870,1771894243715,-2000.0,0.000401,2]
[406508871,1771894243725,-150.0,0.00040165,2]
[406508872,1771894243736,-43.09677179,0.000403,7]
[406508874,1771894245207,-168.1517621,0.00013661,2]
[406508875,1771894245216,-500.0,0.00013759,2]
[406508876,1771894245225,-500.0,0.00013759,2]
[406508877,1771894245235,-500.0,0.00013759,2]
[406508878,1771894245244,-500.0,0.00013759,2]
[406508879,1771894245253,-500.0,0.00013759,2]
[406508880,1771894245262,-500.0,0.00013759,2]
[406508881,1771894245271,-500.0,0.00013759,2]
[406508882,1771894245280,-189.5606232,0.00013759,2]
[406508883,1771894245297,-310.4393768,0.00013759,2]
[406508884,1771894245306,-500.0,0.00013759,2]
[406508885,1771894245315,-1956.90322821,0.000403,7]
[406508886,1771894245324,-169.84,0.000403,14]
[406508887,1771894245333,-166.66,0.00040453,2]
[406508888,1771894245342,-341.09079642,0.00040468,2]
[406508889,1771894245351,-500.0,0.00040597,2]
[406508890,1771894245359,-24000.23,0.000406,2]
[406508891,1771894245368,-24000.23,0.000406,14]
[406508892,1771894245377,-150.0,0.00040894,3]
[406508893,1771894245386,-351.98367053,0.00040933,2]
[406508894,1771894245398,-8400.0,0.00041,60]
[406508895,1771894245407,-514.0,0.00041061,25]
[406508896,1771894245416,-1925.5391,0.0004108,2]
[406508897,1771894245425,-1306.092,0.0004108,2]
[406508898,1771894245435,-911.975,0.00041083,2]
[406508899,1771894245444,-3389.18,0.00041096,120]
[406508900,1771894245453,-300.0,0.00041096,30]
[406508901,1771894245462,-300.0,0.00041096,30]
[406508902,1771894245473,-300.0,0.00041096,30]
[406508903,1771894245482,-300.0,0.00041096,30]
[406508904,1771894245491,-300.0,0.00041096,30]
[406508905,1771894245501,-300.0,0.00041096,30]
[406508906,1771894245510,-300.0,0.00041096,30]
[406508907,1771894245519,-300.0,0.00041096,30]
[406508908,1771894245528,-300.0,0.00041096,30]
[406508909,1771894245538,-300.0,0.00041096,30]
[406508910,1771894245547,-300.0,0.00041096,30]
[406508911,1771894245557,-300.0,0.00041096,30]
[406508912,1771894245567,-300.0,0.00041096,30]
[406508913,1771894245576,-181.044368,0.00041096,120]
[406508914,1771894245585,-300.0,0.00041096,30]
[406508915,1771894245594,-300.0,0.00041096,30]
[406508916,1771894245603,-300.0,0.00041096,30]
[406508917,1771894245612,-300.0,0.00041096,30]
[406508918,1771894245621,-300.0,0.00041096,30]
[406508919,1771894245630,-151.0,0.00041096,120]
[406508920,1771894245639,-300.0,0.00041096,30]
[406508921,1771894245649,-300.0,0.00041096,30]
[406508922,1771894245658,-300.0,0.00041096,30]
[406508923,1771894245667,-300.0,0.00041096,30]
[406508925,1771894245676,-300.0,0.00041096,30]
[406508927,1771894245685,-300.0,0.00041096,30]
[406508929,1771894245694,-300.0,0.00041096,30]
[406508931,1771894245703,-300.0,0.00041096,30]
[406508933,1771894245712,-300.0,0.00041096,30]
[406508934,1771894245721,-300.0,0.00041096,30]
[406508936,1771894245730,-151.0,0.00041096,31]
[406508938,1771894245739,-151.0,0.00041096,120]
[406508940,1771894245748,-151.0,0.00041096,120]
[406508942,1771894245757,-301.55604285,0.00041114,2]
[406508944,1771894245766,-1090.03425228,0.00041114,2]
[406508946,1771894245775,-301.59413287,0.00041114,2]
[406508948,1771894245784,-166.66,0.00041789,2]
[406508950,1771894245793,-55327.9737847,0.00041854,60]
[406508952,1771894245804,-350.625,0.00041854,60]
[406508957,1771894245857,-500.0,0.00013759,2]
[406508958,1771894245866,-2865.83014305,0.00041854,60]
[406508959,1771894245878,-5918.19538726,0.00041854,60]
[406508960,1771894245889,-3409.55154587,0.00041854,60]
[406508970,1771894927648,471.67,0.00012,10]
[406508978,1771895431468,-253.0,0.00012576,2]
[406508979,1771895431480,-3642.03,0.00012576,2]
[406508980,1771895431490,-168.68,0.00012919,2]
[406508981,1771895431501,-300.0,0.0001297,2]
[406508982,1771895431512,-300.0,0.0001297,2]
[406508983,1771895431522,-300.0,0.0001297,2]
[406508984,1771895431534,-1200.0,0.0001297,2]
[406508985,1771895431544,-300.0,0.00012971,2]
[406508986,1771895431554,-5000.0,0.00012971,2]
[406508987,1771895431564,-250.0,0.00012971,2]
[406508988,1771895431575,-5095.56219528,0.00013023,2]
[406508991,1771895431807,-391.88,0.00013023,2]
[406508993,1771895431823,-587.20780472,0.00013023,2]
[406508995,1771895431833,-58.58455729,0.00013143,2]
[406509029,1771895437504,-401.24815439,0.00013143,2]
[406509030,1771895437561,-679.599185,0.00013143,2]
[406509031,1771895437573,-1678.43932799,0.00013143,2]
[406509032,1771895437619,-2182.12877533,0.00013143,2]
[406509033,1771895437630,-901.43426167,0.00013143,2]
[406509034,1771895437641,-250.0,0.00013143,2]
[406509035,1771895437653,-150.0,0.00013253,2]
[406509036,1771895437663,-3846.53345891,0.00013254,2]
[406509037,1771895437679,-580.23789574,0.00013254,2]
[406509038,1771895437743,-35185.31864535,0.00013254,2]
[406509039,1771895437753,-5770.59,0.00013265,2]
[406509040,1771895437764,-252.31,0.000133,2]
[406509041,1771895437775,-20254.08171301,0.00013359,2]
[406509042,1771895437787,-447.06297488,0.00013359,2]
[406509043,1771895437799,-168.15176212,0.00013359,2]
[406509044,1771895437810,-904.64909466,0.00013359,2]
[406509045,1771895437820,-3000.0,0.00013368,2]
[406509046,1771895437831,-558.39,0.00013368,2]
[406509047,1771895437842,-372.0,0.00013417,2]
[406509048,1771895437854,-1899.0,0.00013426,2]
[406509049,1771895437865,-365.22969327,0.00013444,2]
[406509051,1771895437876,-178.88231246,0.00013449,2]
[406509052,1771895437887,-683.0,0.00013453,2]
[406509053,1771895437898,-500.0,0.00013458,2]
[406509054,1771895437910,-209.54635369,0.00013458,2]
[406509055,1771895437921,-298.01030462,0.00013458,2]
[406509056,1771895437932,-500.0,0.00013458,2]
[406509057,1771895437943,-500.0,0.00013458,2]
[406509058,1771895437954,-500.0,0.00013458,2]
[406509059,1771895437965,-500.0,0.00013458,2]
[406509060,1771895437976,-375.82367204,0.00013458,2]
[406509061,1771895437987,-500.0,0.00013458,2]
[406509062,1771895437997,-500.0,0.00013458,2]
[406509063,1771895438008,-500.0,0.00013458,2]
[406509064,1771895438018,-500.0,0.00013458,2]
[406509065,1771895438029,-500.0,0.00013458,2]
[406509066,1771895438039,-500.0,0.00013458,2]
[406509067,1771895438050,-500.0,0.00013458,2]
[406509068,1771895438061,-500.0,0.00013458,2]
[406509069,1771895438072,-500.0,0.00013458,2]
[406509070,1771895438083,-500.0,0.00013458,2]
[406509071,1771895438093,-500.0,0.00013458,2]
[406509072,1771895438104,-500.0,0.00013458,2]
[406509073,1771895438115,-500.0,0.00013458,2]
[406509074,1771895438126,-500.0,0.00013458,2]
[406509075,1771895438136,-500.0,0.00013458,2]
[406509076,1771895438146,-500.0,0.00013458,2]
[406509077,1771895438157,-500.0,0.00013458,2]
[406509078,1771895438167,-500.0,0.00013458,2]
[406509079,1771895438178,-500.0,0.00013458,2]
[406509080,1771895438189,-500.0,0.00013458,2]
[406509081,1771895438199,-500.0,0.00013458,2]
[406509082,1771895438210,-500.0,0.00013458,2]
[406509083,1771895438220,-500.0,0.00013458,2]
[406509084,1771895438230,-500.0,0.00013458,2]
[406509085,1771895438240,-500.0,0.00013458,2]
[406509086,1771895438250,-500.0,0.00013458,2]
[406509087,1771895438260,-500.0,0.00013458,2]
[406509088,1771895438270,-500.0,0.00013458,2]
[406509089,1771895438280,-500.0,0.00013458,2]
[406509090,1771895438290,-500.0,0.00013458,2]
[406509091,1771895438301,-500.0,0.00013458,2]
[406509092,1771895438311,-500.0,0.00013458,2]
[406509093,1771895438320,-500.0,0.00013458,2]
[406509094,1771895438330,-500.0,0.00013458,2]
[406509095,1771895438340,-500.0,0.00013458,2]
[406509096,1771895438351,-500.0,0.00013458,2]
[406509097,1771895438361,-500.0,0.00013458,2]
[406509098,1771895438370,-500.0,0.00013458,2]
[406509099,1771895438380,-299.29367326,0.00013458,2]
[406509100,1771895438390,-500.0,0.00013458,2]
[406509101,1771895438401,-500.0,0.00013458,2]
[406509102,1771895438412,-500.0,0.00013458,2]
[406509103,1771895438422,-500.0,0.00013458,2]
[406509104,1771895438432,-500.0,0.00013458,2]
[406509105,1771895438443,-500.0,0.00013458,2]
[406509106,1771895438453,-500.0,0.00013458,2]
[406509107,1771895438463,-500.0,0.00013458,2]
[406509108,1771895438474,-500.0,0.00013458,2]
[406509109,1771895438484,-500.0,0.00013458,2]
[406509110,1771895438494,-500.0,0.00013458,2]
[406509111,1771895438504,-500.0,0.00013458,2]
[406509112,1771895438514,-500.0,0.00013458,2]
[406509113,1771895438524,-500.0,0.00013458,2]
[406509114,1771895438534,-500.0,0.00013458,2]
[406509115,1771895438545,-500.0,0.00013458,2]
[406509116,1771895438555,-500.0,0.00013458,2]
[406509117,1771895438566,-329.92936732,0.00013458,2]
[406509118,1771895438576,-3500000.0,0.00013459,2]
[406509119,1771895438586,-2500.0,0.00013459,2]
[406509120,1771895438596,-299.99,0.00013459,2]
[406509121,1771895438606,-150.99,0.00013459,2]
[406509122,1771895438618,-150.99,0.00013459,2]
[406509123,1771895438628,-9999.99,0.00013459,2]
[406509124,1771895438638,-9999.99,0.00013459,2]
[406509125,1771895438651,-999.99,0.00013459,2]
[406509126,1771895438662,-1613.37,0.00013459,2]
[406509127,1771895438672,-21965.49558924,0.00013459,2]
[406509128,1771895438683,-452.0,0.00013504,2]
[406509129,1771895438694,-273.0,0.00013504,2]
[406509130,1771895438705,-465.0,0.00013531,2]
[406509131,1771895438716,-685.0,0.00013534,2]
[406509132,1771895439036,-151.0,0.00013551,2]
[406509133,1771895439055,-151.0,0.00013551,2]
[406509134,1771895439072,-151.0,0.00013551,2]
[406509135,1771895439082,-151.0,0.00013551,2]
[406509136,1771895439092,-151.0,0.00013551,2]
[406509137,1771895439102,-151.0,0.00013551,2]
[406509138,1771895439111,-151.0,0.00013551,2]
[406509139,1771895439121,-151.0,0.00013551,2]
[406509140,1771895439131,-151.0,0.00013551,2]
[406509141,1771895439140,-151.0,0.00013551,2]
[406509142,1771895439149,-151.0,0.00013551,2]
[406509143,1771895439159,-151.0,0.00013551,2]
[406509144,1771895439168,-151.0,0.00013551,2]
[406509145,1771895439178,-151.0,0.00013551,2]
[406509146,1771895439188,-151.0,0.00013551,2]
[406509147,1771895439198,-151.0,0.00013551,2]
[406509148,1771895439208,-151.0,0.00013551,2]
[406509149,1771895439217,-151.0,0.00013551,2]
[406509150,1771895439226,-151.0,0.00013551,2]
[406509151,1771895439235,-151.0,0.00013551,2]
[406509152,1771895439245,-2184.62,0.00013559,2]
[406509153,1771895439255,-175.85,0.00013559,2]
[406509154,1771895439264,-287.0,0.0001358,2]
[406509155,1771895439273,-187.0,0.00013607,2]
[406509156,1771895439283,-1024.0,0.00013608,2]
[406509157,1771895439293,-421.0,0.00013634,2]
[406509158,1771895439302,-1652.16877061,0.00013635,2]
[406509159,1771895439314,-10000.0,0.0001366,2]
[406509160,1771895439324,-221.0,0.00013661,2]
[406509161,1771895439334,-500.0,0.00013698,2]
[406509162,1771895439343,-500.0,0.00013698,2]
[406509163,1771895439352,-500.0,0.00013698,2]
[406509164,1771895439362,-500.0,0.00013698,2]
[406509165,1771895439371,-200.0,0.00013699,2]
[406509166,1771895439380,-399.62483557,0.00013707,2]
[406509167,1771895439389,-12626.17,0.00013726,2]
[406509168,1771895439398,-327.53065639,0.00013759,2]
[406509169,1771895439408,-500.0,0.00013759,2]
[406509170,1771895439417,-500.0,0.00013759,2]
[406509171,1771895439426,-500.0,0.00013759,2]
[406509172,1771895439437,-549.65675098,0.00013759,2]
[406509173,1771895439446,-740.24,0.00013759,2]
[406509174,1771895439456,-740.24,0.00013759,2]
[406509175,1771895439465,-740.24,0.00013759,2]
[406509176,1771895439474,-740.24,0.00013759,2]
[406509177,1771895439483,-740.24,0.00013759,2]
[406509178,1771895439493,-740.24,0.00013759,2]
[406509179,1771895439502,-740.24,0.00013759,2]
[406509180,1771895439511,-740.24,0.00013759,2]
[406509181,1771895439520,-740.24,0.00013759,2]
[406509182,1771895439530,-740.24,0.00013759,2]
[406509183,1771895439540,-740.24,0.00013759,2]
[406509184,1771895439549,-740.24,0.00013759,2]
[406509185,1771895439560,-740.24,0.00013759,2]
[406509186,1771895439568,-740.24,0.00013759,2]
[406509187,1771895439579,-500.0,0.00013759,2]
[406509189,1771895439588,-2500.0,0.00013834,2]
[406509190,1771895439597,-2500.0,0.00013834,2]
[406509191,1771895439606,-2500.0,0.00013834,2]
[406509194,1771895439616,-2500.0,0.00013834,2]
[406509195,1771895439626,-2500.0,0.00013834,2]
[406509196,1771895439635,-740.24,0.00013859,2]
[406509198,1771895439644,-18320.676,0.00014172,2]
[406509199,1771895439653,-195.0,0.00014211,2]
[406509200,1771895439663,-195.0,0.00014211,2]
[406509201,1771895439674,-195.0,0.00014211,2]
[406509202,1771895439684,-300.0,0.00014211,2]
[406509203,1771895439693,-5000.0,0.00014211,2]
[406509204,1771895439703,-250.0,0.00014211,2]
[406509205,1771895439712,-195.0,0.00014211,2]
[406509206,1771895439722,-195.0,0.00014211,2]
[406509207,1771895439734,-420.0,0.00014224,2]
[406509208,1771895439743,-32870.6204,0.00014251,2]
[406509209,1771895439753,-1000.0,0.00014251,2]
[406509210,1771895439762,-1680.0,0.00014267,2]
[406509211,1771895439772,-150.0,0.00014314,14]
[406509212,1771895439782,-500.0,0.0001435,2]
[406509213,1771895439791,-500.0,0.0001435,2]
[406509214,1771895439800,-500.0,0.0001435,2]
[406509215,1771895439810,-500.0,0.0001435,2]
[406509216,1771895439819,-500.0,0.0001435,2]
[406509217,1771895439828,-500.0,0.0001435,2]
[406509218,1771895439837,-500.0,0.0001435,2]
[406509219,1771895439846,-500.0,0.0001435,2]
[406509220,1771895439855,-500.0,0.0001435,2]
[406509221,1771895439864,-500.0,0.0001435,2]
[406509222,1771895439873,-500.0,0.0001435,2]
[406509223,1771895439883,-500.0,0.0001435,2]
[406509224,1771895439892,-500.0,0.0001435,2]
[406509225,1771895439901,-500.0,0.0001435,2]
[406509226,1771895439910,-500.0,0.0001435,2]
[406509227,1771895439920,-500.0,0.0001435,2]
[406509228,1771895439930,-500.0,0.0001435,2]
[406509229,1771895439940,-500.0,0.0001435,2]
[406509230,1771895439949,-500.0,0.0001435,2]
[406509231,1771895439958,-500.0,0.0001435,2]
[406509232,1771895439967,-500.0,0.0001435,2]
[406509233,1771895439977,-500.0,0.0001435,2]
[406509234,1771895439986,-500.0,0.0001435,2]
[406509235,1771895439994,-500.0,0.0001435,2]
[406509236,1771895440003,-500.0,0.0001435,2]
[406509237,1771895440012,-500.0,0.0001435,2]
[406509238,1771895440021,-500.0,0.0001435,2]
[406509239,1771895440030,-500.0,0.0001435,2]
[406509240,1771895440039,-500.0,0.0001435,2]
[406509241,1771895440048,-616.19377918,0.0001435,2]
[406509242,1771895440057,-500.0,0.0001435,2]
[406509243,1771895440066,-500.0,0.0001435,2]
[406509244,1771895440075,-185.1,0.0001435,2]
[406509245,1771895440084,-500.0,0.0001435,2]
[406509246,1771895440093,-500.0,0.0001435,2]
[406509247,1771895440102,-500.0,0.0001435,2]
[406509248,1771895440111,-500.0,0.0001435,2]
[406509249,1771895440120,-500.0,0.0001435,2]
[406509250,1771895440130,-500.0,0.0001435,2]
[406509251,1771895440139,-500.0,0.0001435,2]
[406509252,1771895440148,-500.0,0.0001435,2]
[406509253,1771895440157,-500.0,0.0001435,2]
[406509254,1771895440166,-500.0,0.0001435,2]
[406509255,1771895440176,-500.0,0.0001435,2]
[406509256,1771895440185,-500.0,0.0001435,2]
[406509257,1771895440194,-500.0,0.0001435,2]
[406509258,1771895440203,-500.0,0.0001435,2]
[406509259,1771895440213,-500.0,0.0001435,2]
[406509260,1771895440222,-500.0,0.0001435,2]
[406509261,1771895440233,-500.0,0.0001435,2]
[406509262,1771895440242,-500.0,0.0001435,2]
[406509264,1771895440252,-500.0,0.0001435,2]
[406509265,1771895440262,-500.0,0.0001435,2]
[406509267,1771895440271,-500.0,0.0001435,2]
[406509269,1771895440280,-500.0,0.0001435,2]
[406509271,1771895440290,-500.0,0.0001435,2]
[406509273,1771895440299,-500.0,0.0001435,2]
[406509275,1771895440308,-500.0,0.0001435,2]
[406509277,1771895440317,-500.0,0.0001435,2]
[406509279,1771895440326,-500.0,0.0001435,2]
[406509281,1771895440335,-566.09,0.0001435,2]
[406509283,1771895440345,-500.0,0.0001435,2]
[406509285,1771895440354,-500.0,0.0001435,2]
[406509287,1771895440363,-500.0,0.0001435,2]
[406509289,1771895440372,-500.0,0.0001435,2]
[406509291,1771895440381,-500.0,0.0001435,2]
[406509293,1771895440390,-500.0,0.0001435,2]
[406509295,1771895440399,-500.0,0.0001435,2]
[406509297,1771895440408,-500.0,0.0001435,2]
[406509299,1771895440418,-500.0,0.0001435,2]
[406509301,1771895440427,-555.69,0.0001435,2]
[406509304,1771895440439,-500.0,0.0001435,2]
[406509306,1771895440449,-500.0,0.0001435,2]
[406509307,1771895440458,-500.0,0.0001435,2]
[406509308,1771895440467,-500.0,0.0001435,2]
[406509309,1771895440476,-500.0,0.0001435,2]
[406509310,1771895440485,-304.02137725,0.0001435,2]
[406509312,1771895440495,-255.0,0.00014367,2]
[406509313,1771895440504,-482.61545862,0.00014504,2]
[406509314,1771895440513,-151.0,0.00014634,2]
[406509315,1771895440523,-151.0,0.00014634,2]
[406509316,1771895440532,-151.0,0.00014634,2]
[406509317,1771895440541,-151.0,0.00014634,2]
[406509319,1771895440550,-151.0,0.00014634,2]
[406509320,1771895440560,-2170.82,0.00014853,2]
[406509322,1771895440569,-482.61545862,0.00014867,2]
[406509324,1771895440578,-221.43,0.0001489,2]
[406509326,1771895440587,-1000.0,0.00014915,2]
[406509328,1771895440596,-513.0,0.00015101,2]
[406509330,1771895440605,-482.61545862,0.00015229,2]
[406509332,1771895440614,-9999.99,0.0001531,2]
[406509334,1771895440623,-15625.38,0.0001531,2]
[406509336,1771895440632,-2358.27,0.00015423,2]
[406509338,1771895440641,-433.0,0.00015573,2]
[406509340,1771895440650,-482.61545862,0.00015592,2]
[406509342,1771895440659,-587.0,0.000156,2]
[406509344,1771895440668,-2351.0,0.00015694,2]
[406509346,1771895440678,-391.22,0.00015788,2]
[406509348,1771895440687,-482.61545862,0.00015954,2]
[406509350,1771895440696,-740.24,0.00016115,2]
[406509352,1771895440705,-9999.99,0.00016116,2]
[406509354,1771895440714,-482.61545862,0.00016317,2]
[406509356,1771895440724,-249.0,0.00016503,2]
[406509358,1771895440735,-249.0,0.00016563,2]
[406509360,1771895440747,-249.0,0.00016585,2]
[406509362,1771895440757,-249.0,0.00016595,2]
[406509364,1771895440766,-168.0,0.00016596,2]
[406509365,1771895440775,-250.0,0.00016618,2]
[406509368,1771895440784,-249.0,0.00016619,2]
[406509369,1771895440793,-249.0,0.00016626,2]
[406509371,1771895440802,-482.61545862,0.0001668,2]
[406509373,1771895440813,-160.0,0.00016706,2]
[406509375,1771895440822,-173.82651237,0.00016706,2]
[406509377,1771895440830,-249.0,0.00016754,2]
[406509379,1771895440840,-249.0,0.00016756,2]
[406509381,1771895440848,-1000.0,0.00016779,2]
[406509383,1771895440858,-20254.08171298,0.00016786,2]
[406509385,1771895440867,-736.0,0.00016885,2]
[406509387,1771895440877,-21965.49558918,0.00016918,2]
[406509389,1771895440887,-249.0,0.00016982,2]
[406509391,1771895440896,-482.61545862,0.00017042,2]
[406509393,1771895440905,-823.0,0.00017108,2]
[406509395,1771895440914,-168.0,0.00017173,2]
[406509397,1771895440925,-249.0,0.00017197,2]
[406509399,1771895440934,-249.0,0.00017202,2]
[406509401,1771895440943,-249.0,0.00017239,2]
[406509403,1771895440953,-249.0,0.00017249,2]
[406509405,1771895440962,-3292.0,0.00017263,2]
[406509407,1771895440972,-249.0,0.00017361,2]
[406509409,1771895440981,-249.0,0.00017399,2]
[406509411,1771895440990,-482.61545862,0.00017405,2]
[406509413,1771895440999,-249.0,0.00017423,2]
[406509415,1771895441009,-168.0,0.00017584,2]
[406509417,1771895441018,-249.0,0.00017592,2]
[406509419,1771895441028,-513.0,0.00017597,4]
[406509421,1771895441037,-168.0,0.00017698,2]
[406509423,1771895441046,-482.61545862,0.00017767,2]
[406509425,1771895441055,-249.0,0.00017768,2]
[406509427,1771895441064,-1404.3040251,0.00017808,2]
[406509429,1771895441073,-1404.3040251,0.00017808,2]
[406509431,1771895441082,-1404.3040251,0.00017808,2]
[406509433,1771895441091,-1404.3040251,0.00017808,2]
[406509435,1771895441100,-1404.3040251,0.00017808,2]
[406509437,1771895441109,-1404.3040251,0.00017808,2]
[406509439,1771895441118,-1404.3040251,0.00017808,2]
[406509441,1771895441130,-1404.3040251,0.00017808,2]
[406509443,1771895441139,-1404.3040251,0.00017808,2]
[406509445,1771895441148,-1404.3040251,0.00017808,2]
[406509448,1771895441157,-1404.3040251,0.00017808,2]
[406509449,1771895441167,-1404.3040251,0.00017808,2]
[406509451,1771895441176,-1404.3040251,0.00017808,2]
[406509454,1771895441186,-1404.3040251,0.00017808,2]
[406509456,1771895441195,-1455.36962601,0.00017808,2]
[406509457,1771895441205,-1455.36962601,0.00017808,2]
[406509459,1771895441214,-1455.36962601,0.00017808,2]
[406509462,1771895441224,-1455.36962601,0.00017808,2]
[406509463,1771895441233,-1455.36962601,0.00017808,2]